[Event "NED-ch 2018"]
[Site "Amsterdam"]
[Date "2018.07.02"]
[Round "1"]
[White "Van Foreest, Jorden"]
[Black "Sokolov, Ivan"]
[Result "1/2-1/2"]
[ECO "C88"]
[WhiteElo "2641"]
[BlackElo "2565"]
[Annotator "ChessBase"]
[PlyCount "89"]
[EventDate "2018.07.02"]
[EventType "tourn"]
[EventCountry "NED"]
[SourceTitle "playchess.com"]
[Source "ChessBase"]
[SourceQuality "1"]
[TimeControl "40/5400+30:1800+30"]

1. e4 {[%emt 0:00:00]} e5 {[%emt 0:11:29]} 2. Nf3 {[%emt 0:00:00]} Nc6 {[%emt 0:00:02]} 3. Bb5 {[%emt 0:00:00]} a6 {[%emt 0:00:22]} 4. Ba4 {[%emt 0:00:00]} Nf6 {[%emt 0:00:06]} 5. O-O {[%emt 0:00:08]} Be7 {[%emt 0:01:37]} 6. Re1 {[%emt 0:00:21]} b5 {[%emt 0:00:33]} 7. Bb3 {[%emt 0:00:04]} O-O {[%emt 0:00:04]} 8. d3 {[%emt 0:00:19]} d6 {[%emt 0:01:48]} 9. Bd2 {[%emt 0:00:04]} Bb7 {[%emt 0:20:50]} 10. a4 {[%emt 0:00:34]} b4 {[%emt 0:02:59]} 11. a5 {[%emt 0:02:12]} d5 {[%emt 0:00:11]} 12. exd5 {[%emt 0:16:21]} Nxd5 {[%emt 0:00:20]} 13. Bc1 {[%emt 0:01:02]} Bc5 {[%emt 0:08:38]} 14. Nbd2 {[%emt 0:01:44]} Nf6 {[%emt 0:09:00]} 15. Bc4 {[%emt 0:12:04]} Qd6 {[%emt 0:12:39]} 16. c3 {[%emt 0:14:02]} h6 {[%emt 0:03:13]} 17. Qe2 {[%emt 0:02:46]} Kh8 {[%emt 0:02:36]} 18. Ne4 {[%emt 0:08:21]} Nxe4 {[%emt 0:00:03]} 19. dxe4 {[%emt 0:00:05]} Qf6 {[%emt 0:02:07]} 20. Be3 {[%emt 0:00:59]} Bd6 {[%emt 0:00:49]} 21. Bd5 {[%emt 0:01:20]} Nd8 {[%emt 0:00:41]} 22. Bxb7 {[%emt 0:01:06]} Nxb7 {[%emt 0:00:01]} 23. Qc4 {[%emt 0:00:06]} Qe7 {[%emt 0:01:00]} 24. Red1 {[%emt 0:03:27]} bxc3 {[%emt 0:04:20]} 25. bxc3 {[%emt 0:00:27]} Rfb8 {[%emt 0:00:28]} 26. Qd5 {[%emt 0:02:37]} f6 {[%emt 0:04:53]} 27. Nh4 {[%emt 0:00:44]} Qe8 {[%emt 0:00:04]} 28. Qc4 {[%emt 0:02:13]} Qb5 {[%emt 0:05:19]} 29. Qe6 {[%emt 0:01:52]} Qe8 {[%emt 0:00:04]} 30. Qh3 {[%emt 0:04:00]} Rd8 {[%emt 0:01:33]} 31. Rdb1 {[%emt 0:06:55]} Nc5 {[%emt 0:00:05]} 32. Nf5 {[%emt 0:00:50]} Qg6 {[%emt 0:01:55]} 33. Qf3 {[%emt 0:00:25]} Bf8 {[%emt 0:00:48]} 34. h4 {[%emt 0:00:12]} h5 {[%emt 0:03:08]} 35. Rb4 {[%emt 0:01:36]} Ne6 {[%emt 0:01:21]} 36. Rc4 {[%emt 0:00:10]} Qf7 {[%emt 0:00:03]} 37. g4 {[%emt 0:09:59]} Nf4 {[%emt 0:00:03]} 38. Raa4 {[%emt 0:02:15]} Rd3 {[%emt 0:02:24]} 39. gxh5 {[%emt 0:01:40]} Nxh5 {[%emt 0:00:29]} 40. Rxc7 {[%emt 0:04:47]} Qxc7 {[%emt 0:00:02]} 41. Qxh5+ {[%emt 0:30:05]} Kg8 {[%emt 0:30:05]} 42. Qg6 {[%emt 0:00:01]} Qxc3 {[%emt 0:00:00]} 43. Nh6+ {[%emt 0:00:00]} Kh8 {[%emt 0:00:00]} 44. Nf7+ {[%emt 0:00:00]} Kg8 {[%emt 0:00:00]} 45. Nh6+ {[%emt 0:00:00]} 1/2-1/2

[Event "NED-ch 2018"]
[Site "Amsterdam"]
[Date "2018.07.02"]
[Round "1"]
[White "Van den Doel, Erik"]
[Black "Van Wely, Loek"]
[Result "1-0"]
[ECO "B46"]
[WhiteElo "2593"]
[BlackElo "2675"]
[Annotator "ChessBase"]
[PlyCount "99"]
[EventDate "2018.07.02"]
[EventType "tourn"]
[EventCountry "NED"]
[SourceTitle "playchess.com"]
[Source "ChessBase"]
[SourceQuality "1"]
[TimeControl "40/5400+30:1800+30"]

1. e4 {[%emt 0:00:00]} c5 {[%emt 0:00:00]} 2. Nf3 {[%emt 0:00:00]} e6 {[%emt 0:00:00]} 3. d4 {[%emt 0:00:00]} cxd4 {[%emt 0:00:02]} 4. Nxd4 {[%emt 0:00:00]} Nc6 {[%emt 0:00:10]} 5. Nc3 {[%emt 0:00:15]} a6 {[%emt 0:00:11]} 6. Nxc6 {[%emt 0:16:17]} bxc6 {[%emt 0:01:22]} 7. Bd3 {[%emt 0:00:11]} Qc7 {[%emt 0:00:59]} 8. O-O {[%emt 0:10:32]} Nf6 {[%emt 0:00:22]} 9. Bg5 {[%emt 0:15:19]} h6 {[%emt 0:24:40]} 10. Bxf6 {[%emt 0:09:03]} gxf6 {[%emt 0:01:06]} 11. Kh1 {[%emt 0:02:34]} h5 {[%emt 0:04:22]} 12. f4 {[%emt 0:02:51]} Bb7 {[%emt 0:00:36]} 13. Qe2 {[%emt 0:11:12]} h4 {[%emt 0:09:10]} 14. h3 {[%emt 0:00:37]} Bc5 {[%emt 0:09:26]} 15. Nd1 {[%emt 0:08:22]} d5 {[%emt 0:05:51]} 16. Nf2 {[%emt 0:06:18]} Kf8 {[%emt 0:08:30]} 17. Ng4 {[%emt 0:07:44]} Kg7 {[%emt 0:12:49]} 18. f5 {[%emt 0:01:31]} e5 {[%emt 0:00:12]} 19. Qe1 {[%emt 0:02:16]} Rad8 {[%emt 0:03:08]} 20. Rd1 {[%emt 0:01:14]} Qb6 {[%emt 0:01:56]} 21. Rb1 {[%emt 0:00:26]} a5 {[%emt 0:02:00]} 22. Qe2 {[%emt 0:00:11]} Rd6 {[%emt 0:02:02]} 23. b3 {[%emt 0:01:02]} Qb4 {[%emt 0:01:42]} 24. Rbd1 {[%emt 0:02:29]} Rhd8 {[%emt 0:03:35]} 25. c4 {[%emt 0:00:10]} dxe4 {[%emt 0:01:04]} 26. Bxe4 {[%emt 0:00:18]} Qc3 {[%emt 0:05:01]} 27. Rxd6 {[%emt 0:02:05]} Rxd6 {[%emt 0:00:03]} 28. Nh2 {[%emt 0:00:24]} Qg3 {[%emt 0:01:48]} 29. Nf3 {[%emt 0:00:31]} Kf8 {[%emt 0:00:32]} 30. Ne1 {[%emt 0:00:36]} Qe3 {[%emt 0:01:22]} 31. Qf3 {[%emt 0:00:17]} Rd2 {[%emt 0:00:32]} 32. Bxc6 {[%emt 0:00:26]} Bxc6 {[%emt 0:00:27]} 33. Qxc6 {[%emt 0:00:04]} Rf2 {[%emt 0:00:46]} 34. Rg1 {[%emt 0:00:35]} Rxf5 {[%emt 0:00:33]} 35. Nf3 {[%emt 0:01:04]} Rxf3 {[%emt 0:00:12]} 36. Qc8+ {[%emt 0:00:05]} Ke7 {[%emt 0:00:22]} 37. Rd1 {[%emt 0:00:55]} Bd4 {[%emt 0:01:06]} 38. Qb7+ {[%emt 0:00:16]} Ke6 {[%emt 0:00:25]} 39. Qxf3 {[%emt 0:00:20]} f5 {[%emt 0:00:21]} 40. Qc6+ {[%emt 0:00:57]} Ke7 {[%emt 0:00:08]} 41. Qc7+ {[%emt 0:05:56]} Kf6 {[%emt 0:01:04]} 42. Qxa5 {[%emt 0:03:59]} Kg6 {[%emt 0:03:53]} 43. Qd2 {[%emt 0:06:33]} Qg3 {[%emt 0:00:07]} 44. b4 {[%emt 0:03:31]} Be3 {[%emt 0:02:18]} 45. Qd3 {[%emt 0:02:01]} e4 {[%emt 0:00:19]} 46. Qd6+ {[%emt 0:01:59]} Qxd6 {[%emt 0:00:40]} 47. Rxd6+ {[%emt 0:00:03]} Kg5 {[%emt 0:02:59]} 48. c5 {[%emt 0:00:18]} Bf2 {[%emt 0:00:51]} 49. Rd2 {[%emt 0:03:36]} e3 {[%emt 0:01:47]} 50. Rc2 {[%emt 0:01:24]} 1-0

[Event "NED-ch 2018"]
[Site "Amsterdam"]
[Date "2018.07.02"]
[Round "1"]
[White "Tiviakov, Sergei"]
[Black "Leenhouts, Koen"]
[Result "1-0"]
[ECO "B22"]
[WhiteElo "2580"]
[BlackElo "2483"]
[Annotator "ChessBase"]
[PlyCount "73"]
[EventDate "2018.07.02"]
[EventType "tourn"]
[EventCountry "NED"]
[SourceTitle "playchess.com"]
[Source "ChessBase"]
[SourceQuality "1"]
[TimeControl "40/5400+30:1800+30"]

1. e4 {[%emt 0:00:00]} c5 {[%emt 0:00:00]} 2. Nf3 {[%emt 0:00:00]} e6 {[%emt 0:00:04]} 3. c3 {[%emt 0:00:00]} Nf6 {[%emt 0:00:24]} 4. e5 {[%emt 0:00:00]} Nd5 {[%emt 0:00:16]} 5. Bc4 {[%emt 0:00:00]} d6 {[%emt 0:00:42]} 6. exd6 {[%emt 0:00:00]} Bxd6 {[%emt 0:00:32]} 7. d4 {[%emt 0:00:15]} O-O {[%emt 0:01:36]} 8. dxc5 {[%emt 0:00:41]} Bxc5 {[%emt 0:00:12]} 9. O-O {[%emt 0:00:28]} Nc6 {[%emt 0:00:39]} 10. Nbd2 {[%emt 0:02:39]} Be7 {[%emt 0:02:05]} 11. Re1 {[%emt 0:01:29]} b6 {[%emt 0:07:20]} 12. Nb3 {[%emt 0:04:02]} Nf6 {[%emt 0:07:42]} 13. Nbd4 {[%emt 0:12:04]} Nxd4 {[%emt 0:07:23]} 14. Nxd4 {[%emt 0:00:21]} Bb7 {[%emt 0:03:26]} 15. Bf4 {[%emt 0:00:40]} Nd5 {[%emt 0:03:27]} 16. Bg3 {[%emt 0:05:58]} Bd6 {[%emt 0:07:26]} 17. Qg4 {[%emt 0:04:20]} Bxg3 {[%emt 0:04:33]} 18. hxg3 {[%emt 0:01:54]} Rc8 {[%emt 0:01:49]} 19. Bb3 {[%emt 0:00:39]} Rc5 {[%emt 0:09:02]} 20. Rad1 {[%emt 0:05:42]} Qc8 {[%emt 0:06:19]} 21. Re5 {[%emt 0:15:51]} Nf6 {[%emt 0:03:17]} 22. Qe2 {[%emt 0:00:16]} Rxe5 {[%emt 0:07:14]} 23. Qxe5 {[%emt 0:00:06]} Rd8 {[%emt 0:04:38]} 24. Nb5 {[%emt 0:10:59]} Rxd1+ {[%emt 0:06:01]} 25. Bxd1 {[%emt 0:00:04]} a6 {[%emt 0:02:09]} 26. Nd4 {[%emt 0:01:07]} h6 {[%emt 0:02:06]} 27. Qd6 {[%emt 0:02:07]} b5 {[%emt 0:02:38]} 28. a4 {[%emt 0:00:53]} Ne4 {[%emt 0:02:10]} 29. Qe7 {[%emt 0:01:26]} bxa4 {[%emt 0:04:03]} 30. Bh5 {[%emt 0:12:38]} Bd5 {[%emt 0:03:20]} 31. Bxf7+ {[%emt 0:01:33]} Kh8 {[%emt 0:00:16]} 32. Bxe6 {[%emt 0:04:16]} Bxe6 {[%emt 0:00:13]} 33. Nxe6 {[%emt 0:00:03]} Qg8 {[%emt 0:00:09]} 34. Nxg7 {[%emt 0:00:59]} Qd5 {[%emt 0:01:59]} 35. Qf8+ {[%emt 0:01:02]} Kh7 {[%emt 0:00:08]} 36. Nf5 {[%emt 0:00:41]} Qd1+ {[%emt 0:01:42]} 37. Kh2 {[%emt 0:00:06]} 1-0

[Event "NED-ch 2018"]
[Site "Amsterdam"]
[Date "2018.07.02"]
[Round "1"]
[White "Ernst, Sipke"]
[Black "L' Ami, Erwin"]
[Result "1/2-1/2"]
[ECO "E97"]
[WhiteElo "2555"]
[BlackElo "2636"]
[Annotator "ChessBase"]
[PlyCount "56"]
[EventDate "2018.07.02"]
[EventType "tourn"]
[EventCountry "NED"]
[SourceTitle "playchess.com"]
[Source "ChessBase"]
[SourceQuality "1"]
[TimeControl "40/5400+30:1800+30"]

1. Nf3 {[%emt 0:00:16]} Nf6 {[%emt 0:00:20]} 2. c4 {[%emt 0:00:00]} g6 {[%emt 0:00:14]} 3. Nc3 {[%emt 0:00:04]} Bg7 {[%emt 0:00:44]} 4. e4 {[%emt 0:00:14]} d6 {[%emt 0:00:09]} 5. d4 {[%emt 0:00:03]} O-O {[%emt 0:00:12]} 6. Be2 {[%emt 0:00:03]} e5 {[%emt 0:00:09]} 7. O-O {[%emt 0:00:03]} Nc6 {[%emt 0:00:09]} 8. d5 {[%emt 0:00:02]} Ne7 {[%emt 0:00:10]} 9. b4 {[%emt 0:00:02]} a5 {[%emt 0:00:36]} 10. Ba3 {[%emt 0:00:08]} b6 {[%emt 0:01:09]} 11. bxa5 {[%emt 0:01:12]} Ne8 {[%emt 0:00:42]} 12. Nb5 {[%emt 0:09:05]} Rxa5 {[%emt 0:01:58]} 13. Bb4 {[%emt 0:03:55]} Ra8 {[%emt 0:00:12]} 14. a4 {[%emt 0:01:17]} f5 {[%emt 0:00:22]} 15. a5 {[%emt 0:09:14]} fxe4 {[%emt 0:02:06]} 16. Ng5 {[%emt 0:14:01]} bxa5 {[%emt 0:07:03]} 17. Bd2 {[%emt 0:02:58]} c6 {[%emt 0:09:50]} 18. Nc3 {[%emt 0:03:04]} cxd5 {[%emt 0:04:09]} 19. cxd5 {[%emt 0:05:27]} Nf5 {[%emt 0:07:49]} 20. Ngxe4 {[%emt 0:02:01]} Nd4 {[%emt 0:02:46]} 21. Nb5 {[%emt 0:12:21]} Bf5 {[%emt 0:08:06]} 22. Nxd4 {[%emt 0:00:17]} exd4 {[%emt 0:00:33]} 23. Bd3 {[%emt 0:00:28]} Bxe4 {[%emt 0:09:10]} 24. Bxe4 {[%emt 0:00:06]} Nf6 {[%emt 0:00:21]} 25. Bg5 {[%emt 0:06:57]} Qe8 {[%emt 0:00:44]} 26. Bxf6 {[%emt 0:02:50]} Qxe4 {[%emt 0:07:33]} 27. Bxg7 {[%emt 0:00:54]} Kxg7 {[%emt 0:00:07]} 28. Ra4 {[%emt 0:03:32]} Qxd5 {[%emt 0:03:01]} 1/2-1/2

[Event "NED-ch 2018"]
[Site "Amsterdam"]
[Date "2018.07.03"]
[Round "2"]
[White "Van Foreest, Jorden"]
[Black "Tiviakov, Sergei"]
[Result "1/2-1/2"]
[ECO "C10"]
[WhiteElo "2641"]
[BlackElo "2580"]
[Annotator "ChessBase"]
[PlyCount "109"]
[EventDate "2018.07.02"]
[EventType "tourn"]
[EventCountry "NED"]
[SourceTitle "playchess.com"]
[Source "ChessBase"]
[SourceQuality "1"]
[TimeControl "40/5400+30:1800+30"]

1. e4 {[%emt 0:00:00]} e6 {[%emt 0:00:00]} 2. d4 {[%emt 0:00:00]} d5 {[%emt 0:00:00]} 3. Nc3 {[%emt 0:00:00]} dxe4 {[%emt 0:00:00]} 4. Nxe4 {[%emt 0:00:00]} Nd7 {[%emt 0:00:00]} 5. Nf3 {[%emt 0:00:07]} Ngf6 {[%emt 0:00:00]} 6. Nxf6+ {[%emt 0:00:09]} Nxf6 {[%emt 0:00:00]} 7. Be3 {[%emt 0:00:11]} Be7 {[%emt 0:04:47]} 8. Bd3 {[%emt 0:00:10]} b6 {[%emt 0:01:00]} 9. Qe2 {[%emt 0:04:08]} Bb7 {[%emt 0:00:10]} 10. O-O-O {[%emt 0:00:09]} O-O {[%emt 0:00:44]} 11. Kb1 {[%emt 0:00:08]} Qd6 {[%emt 0:15:05]} 12. Ne5 {[%emt 0:04:34]} c5 {[%emt 0:17:11]} 13. Rhe1 {[%emt 0:22:43]} cxd4 {[%emt 0:16:43]} 14. Bxd4 {[%emt 0:00:22]} Rad8 {[%emt 0:00:20]} 15. c3 {[%emt 0:03:58]} Qc7 {[%emt 0:02:08]} 16. Ng4 {[%emt 0:16:17]} Nxg4 {[%emt 0:17:57]} 17. Qxg4 {[%emt 0:00:32]} g6 {[%emt 0:00:03]} 18. Qh3 {[%emt 0:00:15]} Qf4 {[%emt 0:05:07]} 19. g3 {[%emt 0:06:18]} Qf3 {[%emt 0:01:16]} 20. Bc2 {[%emt 0:03:44]} Rxd4 {[%emt 0:12:50]} 21. Rxd4 {[%emt 0:00:25]} Qxf2 {[%emt 0:00:12]} 22. Qf1 {[%emt 0:00:15]} Qxf1 {[%emt 0:00:16]} 23. Rxf1 {[%emt 0:00:05]} Bc6 {[%emt 0:00:10]} 24. a4 {[%emt 0:01:42]} Bd5 {[%emt 0:01:40]} 25. b4 {[%emt 0:03:48]} Rc8 {[%emt 0:00:11]} 26. Kb2 {[%emt 0:00:46]} Bf8 {[%emt 0:01:53]} 27. Bb3 {[%emt 0:03:33]} Bg7 {[%emt 0:00:02]} 28. Rd3 {[%emt 0:00:09]} Be4 {[%emt 0:00:16]} 29. Rd7 {[%emt 0:01:48]} Bxc3+ {[%emt 0:01:44]} 30. Ka2 {[%emt 0:00:10]} Bf5 {[%emt 0:00:52]} 31. g4 {[%emt 0:02:43]} Bxg4 {[%emt 0:00:13]} 32. Rfxf7 {[%emt 0:01:04]} a5 {[%emt 0:00:16]} 33. b5 {[%emt 0:00:57]} Be5 {[%emt 0:01:45]} 34. Rfe7 {[%emt 0:01:18]} Bxh2 {[%emt 0:01:20]} 35. Rg7+ {[%emt 0:02:39]} Kf8 {[%emt 0:00:01]} 36. Rdf7+ {[%emt 0:00:36]} Ke8 {[%emt 0:00:01]} 37. Rf2 {[%emt 0:00:19]} Bg3 {[%emt 0:00:07]} 38. Rg2 {[%emt 0:00:50]} Rc3 {[%emt 0:00:02]} 39. Rxh7 {[%emt 0:03:03]} Bf5 {[%emt 0:01:11]} 40. Re2 {[%emt 0:00:31]} Bg4 {[%emt 0:00:14]} 41. Rd2 {[%emt 0:31:33]} Rc7 {[%emt 0:16:23]} 42. Rh8+ {[%emt 0:00:00]} Ke7 {[%emt 0:00:04]} 43. Rb8 {[%emt 0:00:00]} Be5 {[%emt 0:01:35]} 44. Rxb6 {[%emt 0:00:00]} Rc1 {[%emt 0:00:15]} 45. Ka3 {[%emt 0:00:00]} Bf5 {[%emt 0:01:24]} 46. Re2 {[%emt 0:00:00]} Ra1+ {[%emt 0:01:09]} 47. Ba2 {[%emt 0:00:00]} Bd4 {[%emt 0:03:07]} 48. Rc6 {[%emt 0:00:00]} Kd7 {[%emt 0:00:45]} 49. Rd2 {[%emt 0:01:03]} e5 {[%emt 0:00:05]} 50. Rf6 {[%emt 0:00:01]} Be4 {[%emt 0:03:12]} 51. Rf7+ {[%emt 0:01:33]} Kc8 {[%emt 0:02:39]} 52. Rh2 {[%emt 0:05:16]} Bc5+ {[%emt 0:00:20]} 53. Kb2 {[%emt 0:00:03]} Bd4+ {[%emt 0:00:20]} 54. Ka3 {[%emt 0:00:09]} Bc5+ {[%emt 0:00:04]} 55. Kb2 {[%emt 0:00:03]} 1/2-1/2

[Event "NED-ch 2018"]
[Site "Amsterdam"]
[Date "2018.07.03"]
[Round "2"]
[White "L' Ami, Erwin"]
[Black "Van den Doel, Erik"]
[Result "1-0"]
[ECO "C95"]
[WhiteElo "2636"]
[BlackElo "2593"]
[Annotator "ChessBase"]
[PlyCount "81"]
[EventDate "2018.07.02"]
[EventType "tourn"]
[EventCountry "NED"]
[SourceTitle "playchess.com"]
[Source "ChessBase"]
[SourceQuality "1"]
[TimeControl "40/5400+30:1800+30"]

1. e4 {[%emt 0:00:00]} e5 {[%emt 0:00:00]} 2. Nf3 {[%emt 0:00:00]} Nc6 {[%emt 0:00:00]} 3. Bb5 {[%emt 0:00:00]} a6 {[%emt 0:00:00]} 4. Ba4 {[%emt 0:00:00]} Nf6 {[%emt 0:00:16]} 5. O-O {[%emt 0:00:07]} Be7 {[%emt 0:00:06]} 6. Re1 {[%emt 0:00:11]} b5 {[%emt 0:07:49]} 7. Bb3 {[%emt 0:00:23]} d6 {[%emt 0:00:09]} 8. c3 {[%emt 0:00:09]} O-O {[%emt 0:00:28]} 9. h3 {[%emt 0:00:09]} Nb8 {[%emt 0:10:18]} 10. d4 {[%emt 0:00:13]} Nbd7 {[%emt 0:00:04]} 11. Nbd2 {[%emt 0:00:34]} Bb7 {[%emt 0:00:07]} 12. Bc2 {[%emt 0:00:39]} Re8 {[%emt 0:00:10]} 13. Nf1 {[%emt 0:00:41]} Bf8 {[%emt 0:00:05]} 14. Ng3 {[%emt 0:00:30]} g6 {[%emt 0:00:11]} 15. a4 {[%emt 0:01:09]} Nb6 {[%emt 0:01:52]} 16. a5 {[%emt 0:02:28]} Nbd7 {[%emt 0:02:31]} 17. d5 {[%emt 0:00:14]} c6 {[%emt 0:06:36]} 18. dxc6 {[%emt 0:00:11]} Bxc6 {[%emt 0:00:04]} 19. b4 {[%emt 0:00:11]} Ra7 {[%emt 0:14:48]} 20. Bb3 {[%emt 0:03:18]} Qa8 {[%emt 0:01:31]} 21. Qe2 {[%emt 0:02:29]} d5 {[%emt 0:06:56]} 22. Qa2 {[%emt 0:03:18]} Rc7 {[%emt 0:19:51]} 23. Bb2 {[%emt 0:14:59]} Bb7 {[%emt 0:15:31]} 24. Rad1 {[%emt 0:03:41]} Bd6 {[%emt 0:00:34]} 25. Nf1 {[%emt 0:09:36]} Qc8 {[%emt 0:03:36]} 26. Ne3 {[%emt 0:04:01]} Bf8 {[%emt 0:03:51]} 27. exd5 {[%emt 0:12:42]} Bd6 {[%emt 0:00:10]} 28. c4 {[%emt 0:11:51]} Bxb4 {[%emt 0:01:12]} 29. cxb5 {[%emt 0:04:20]} Bxe1 {[%emt 0:02:56]} 30. Rxe1 {[%emt 0:02:37]} Rc3 {[%emt 0:01:08]} 31. bxa6 {[%emt 0:04:36]} Rxb3 {[%emt 0:00:09]} 32. Qxb3 {[%emt 0:00:14]} Bxa6 {[%emt 0:00:04]} 33. Rc1 {[%emt 0:04:24]} Qa8 {[%emt 0:00:04]} 34. Rc7 {[%emt 0:01:25]} Bc8 {[%emt 0:03:16]} 35. Qb5 {[%emt 0:08:28]} Qa6 {[%emt 0:00:35]} 36. Qc6 {[%emt 0:01:51]} Qxc6 {[%emt 0:00:30]} 37. dxc6 {[%emt 0:00:24]} Nc5 {[%emt 0:00:27]} 38. Nxe5 {[%emt 0:00:48]} Be6 {[%emt 0:00:25]} 39. Ba3 {[%emt 0:02:20]} Nb3 {[%emt 0:00:36]} 40. a6 {[%emt 0:00:54]} Nd4 {[%emt 0:00:31]} 41. a7 {[%emt 0:32:16]} 1-0

[Event "NED-ch 2018"]
[Site "Amsterdam"]
[Date "2018.07.03"]
[Round "2"]
[White "Sokolov, Ivan"]
[Black "Van Wely, Loek"]
[Result "1/2-1/2"]
[ECO "D45"]
[WhiteElo "2565"]
[BlackElo "2674"]
[Annotator "ChessBase"]
[PlyCount "87"]
[EventDate "2018.07.02"]
[EventType "tourn"]
[EventCountry "NED"]
[SourceTitle "playchess.com"]
[Source "ChessBase"]
[SourceQuality "1"]
[TimeControl "40/5400+30:1800+30"]

1. d4 {[%emt 0:22:29]} d5 {[%emt 0:00:00]} 2. Nf3 {[%emt 0:01:09]} Nf6 {[%emt 0:00:25]} 3. c4 {[%emt 0:01:14]} e6 {[%emt 0:00:14]} 4. Nc3 {[%emt 0:00:41]} c6 {[%emt 0:00:25]} 5. e3 {[%emt 0:00:22]} Nbd7 {[%emt 0:00:29]} 6. Be2 {[%emt 0:03:27]} b6 {[%emt 0:04:48]} 7. O-O {[%emt 0:03:14]} Bb7 {[%emt 0:00:33]} 8. Rb1 {[%emt 0:05:44]} Be7 {[%emt 0:28:17]} 9. b4 {[%emt 0:00:48]} dxc4 {[%emt 0:02:14]} 10. Bxc4 {[%emt 0:10:35]} Nd5 {[%emt 0:00:46]} 11. Nxd5 {[%emt 0:12:09]} cxd5 {[%emt 0:01:05]} 12. Bd3 {[%emt 0:00:09]} O-O {[%emt 0:00:56]} 13. b5 {[%emt 0:01:45]} a6 {[%emt 0:06:50]} 14. Qc2 {[%emt 0:06:48]} h6 {[%emt 0:04:48]} 15. Qe2 {[%emt 0:02:57]} axb5 {[%emt 0:07:57]} 16. Bxb5 {[%emt 0:00:21]} Nf6 {[%emt 0:09:33]} 17. a4 {[%emt 0:00:06]} Ne4 {[%emt 0:00:05]} 18. Bd2 {[%emt 0:00:22]} Nd6 {[%emt 0:03:09]} 19. Rfc1 {[%emt 0:01:00]} f6 {[%emt 0:06:17]} 20. Nh4 {[%emt 0:03:17]} Rf7 {[%emt 0:06:38]} 21. Ng6 {[%emt 0:01:46]} Nxb5 {[%emt 0:02:34]} 22. Nxe7+ {[%emt 0:01:55]} Rxe7 {[%emt 0:00:59]} 23. Qxb5 {[%emt 0:00:15]} Kf7 {[%emt 0:02:26]} 24. h3 {[%emt 0:02:16]} Ra7 {[%emt 0:02:31]} 25. Be1 {[%emt 0:11:15]} Ba8 {[%emt 0:02:02]} 26. Qxb6 {[%emt 0:01:01]} Qxb6 {[%emt 0:00:16]} 27. Rxb6 {[%emt 0:00:02]} Rxa4 {[%emt 0:00:15]} 28. Bb4 {[%emt 0:00:02]} Rea7 {[%emt 0:02:49]} 29. Rc8 {[%emt 0:01:40]} Ra1+ {[%emt 0:01:47]} 30. Kh2 {[%emt 0:00:02]} Rb1 {[%emt 0:00:11]} 31. Kg3 {[%emt 0:05:05]} Kg6 {[%emt 0:01:25]} 32. Bc5 {[%emt 0:00:25]} Rxb6 {[%emt 0:00:28]} 33. Bxb6 {[%emt 0:00:02]} Ra6 {[%emt 0:00:34]} 34. Bc5 {[%emt 0:00:06]} Kf7 {[%emt 0:01:54]} 35. Rc7+ {[%emt 0:00:35]} Kg8 {[%emt 0:00:10]} 36. Re7 {[%emt 0:00:03]} Kh7 {[%emt 0:00:52]} 37. h4 {[%emt 0:00:21]} h5 {[%emt 0:00:10]} 38. f3 {[%emt 0:00:20]} Bc6 {[%emt 0:01:11]} 39. Rxe6 {[%emt 0:00:18]} Bb5 {[%emt 0:00:05]} 40. Rxa6 {[%emt 0:02:19]} Bxa6 {[%emt 0:00:04]} 41. Kf4 {[%emt 0:30:03]} Kg6 {[%emt 0:30:54]} 42. g4 {[%emt 0:00:06]} hxg4 {[%emt 0:00:00]} 43. Kxg4 {[%emt 0:00:00]} Kf7 {[%emt 0:00:00]} 44. Kf4 {[%emt 0:00:00]} 1/2-1/2

[Event "NED-ch 2018"]
[Site "Amsterdam"]
[Date "2018.07.03"]
[Round "2"]
[White "Leenhouts, Koen"]
[Black "Ernst, Sipke"]
[Result "1/2-1/2"]
[ECO "D27"]
[WhiteElo "2483"]
[BlackElo "2555"]
[Annotator "ChessBase"]
[PlyCount "26"]
[EventDate "2018.07.02"]
[EventType "tourn"]
[EventCountry "NED"]
[SourceTitle "playchess.com"]
[Source "ChessBase"]
[SourceQuality "1"]
[TimeControl "40/5400+30:1800+30"]

1. d4 {[%emt 0:00:00]} Nf6 {[%emt 0:00:00]} 2. c4 {[%emt 0:00:00]} e6 {[%emt 0:00:00]} 3. Nc3 {[%emt 0:00:00]} d5 {[%emt 0:00:00]} 4. Nf3 {[%emt 0:04:00]} dxc4 {[%emt 0:07:14]} 5. e3 {[%emt 0:08:17]} a6 {[%emt 0:00:44]} 6. a4 {[%emt 0:02:37]} c5 {[%emt 0:00:04]} 7. Bxc4 {[%emt 0:00:36]} Nc6 {[%emt 0:00:02]} 8. O-O {[%emt 0:00:56]} Be7 {[%emt 0:00:04]} 9. Qe2 {[%emt 0:08:41]} cxd4 {[%emt 0:00:05]} 10. Rd1 {[%emt 0:00:24]} e5 {[%emt 0:00:49]} 11. exd4 {[%emt 0:06:37]} exd4 {[%emt 0:00:09]} 12. Nxd4 {[%emt 0:13:02]} Nxd4 {[%emt 0:00:11]} 13. Qe5 {[%emt 0:07:10]} Qd6 {[%emt 0:00:04]} 1/2-1/2

[Event "NED-ch 2018"]
[Site "Amsterdam"]
[Date "2018.07.07"]
[Round "5"]
[White "Van Wely, Loek"]
[Black "Van Foreest, Jorden"]
[Result "1/2-1/2"]
[ECO "D20"]
[WhiteElo "2674"]
[BlackElo "2640"]
[Annotator "ChessBase"]
[PlyCount "80"]
[EventDate "2018.07.02"]
[EventType "tourn"]
[EventCountry "NED"]
[SourceTitle "playchess.com"]
[Source "ChessBase"]
[SourceQuality "1"]
[TimeControl "40/5400+30:1800+30"]

1. d4 {[%emt 0:05:28]} d5 {[%emt 0:00:01]} 2. c4 {[%emt 0:00:07]} dxc4 {[%emt 0:00:09]} 3. e4 {[%emt 0:00:07]} e5 {[%emt 0:00:27]} 4. Nf3 {[%emt 0:00:08]} Bb4+ {[%emt 0:00:11]} 5. Nc3 {[%emt 0:00:07]} Nf6 {[%emt 0:00:17]} 6. Bxc4 {[%emt 0:01:17]} exd4 {[%emt 0:00:23]} 7. Nxd4 {[%emt 0:00:25]} O-O {[%emt 0:00:32]} 8. O-O {[%emt 0:01:08]} Bxc3 {[%emt 0:00:24]} 9. bxc3 {[%emt 0:00:05]} Nxe4 {[%emt 0:00:10]} 10. Ba3 {[%emt 0:06:06]} Nd6 {[%emt 0:00:27]} 11. Nb5 {[%emt 0:03:34]} Nxc4 {[%emt 0:00:39]} 12. Bxf8 {[%emt 0:00:27]} Qxf8 {[%emt 0:00:21]} 13. Nxc7 {[%emt 0:01:00]} Nb6 {[%emt 0:00:09]} 14. Rb1 {[%emt 0:12:34]} Na6 {[%emt 0:04:43]} 15. Nxa8 {[%emt 0:00:17]} Nxa8 {[%emt 0:00:07]} 16. Qd4 {[%emt 0:01:02]} Nc5 {[%emt 0:09:38]} 17. Rfd1 {[%emt 0:24:18]} Nb6 {[%emt 0:18:12]} 18. Qf4 {[%emt 0:07:50]} Be6 {[%emt 0:14:35]} 19. Rxb6 {[%emt 0:15:07]} axb6 {[%emt 0:00:11]} 20. Qc7 {[%emt 0:00:07]} Nd7 {[%emt 0:01:12]} 21. Rxd7 {[%emt 0:01:48]} Bxd7 {[%emt 0:00:05]} 22. Qxd7 {[%emt 0:00:04]} g6 {[%emt 0:04:25]} 23. a4 {[%emt 0:02:39]} Qa3 {[%emt 0:03:04]} 24. Qd8+ {[%emt 0:00:17]} Kg7 {[%emt 0:00:05]} 25. Qd4+ {[%emt 0:00:06]} Kg8 {[%emt 0:00:08]} 26. Qd8+ {[%emt 0:00:12]} Kg7 {[%emt 0:00:11]} 27. Qd4+ {[%emt 0:00:05]} Kg8 {[%emt 0:00:00]} 28. g4 {[%emt 0:02:37]} h5 {[%emt 0:01:44]} 29. h3 {[%emt 0:00:38]} hxg4 {[%emt 0:01:03]} 30. hxg4 {[%emt 0:00:04]} Qb3 {[%emt 0:05:05]} 31. Kg2 {[%emt 0:00:47]} b5 {[%emt 0:01:16]} 32. axb5 {[%emt 0:00:38]} Qxb5 {[%emt 0:00:08]} 33. Kf3 {[%emt 0:03:10]} Qc6+ {[%emt 0:01:06]} 34. Ke3 {[%emt 0:03:05]} f6 {[%emt 0:00:53]} 35. c4 {[%emt 0:01:59]} Kf7 {[%emt 0:00:24]} 36. c5 {[%emt 0:02:08]} Qe6+ {[%emt 0:00:30]} 37. Qe4 {[%emt 0:01:27]} Qb3+ {[%emt 0:01:04]} 38. Qd3 {[%emt 0:01:26]} Qe6+ {[%emt 0:00:18]} 39. Qe4 {[%emt 0:00:06]} Qb3+ {[%emt 0:00:04]} 40. Qd3 {[%emt 0:02:17]} Qe6+ {[%emt 0:01:31] Ke4 [%emt 00:00:15]} 1/2-1/2